bitfinex/quotes_SOLUSD_20260109
["timestamp","ask_amount","ask_price","bid_price","bid_amount"]
[1767990340673,0.71970181,135.95,135.91,2.94334422]
[1767990340980,8.07453732,135.97,135.93,2.94334422]
[1767990341372,0.86186338,135.97,135.93,2.94334422]
[1767990341773,112.57393798,135.98,135.94,2.94334422]
[1767990342491,0.71970181,135.97,135.94,2.94334422]
[1767990343482,0.71970181,135.99,135.95,2.94334422]
[1767990343675,0.71970181,135.99,135.96,2.94334422]
[1767990344600,0.71970181,135.98,135.93,7.38646242]
[1767990344757,3.63304604,135.98,135.94,13.44]
[1767990345100,10.98720559,135.98,135.94,13.44]
[1767990345379,0.71970181,135.97,135.94,13.44]
[1767990345588,0.71970181,135.97,135.94,23.70947881]
[1767990346184,0.71970181,135.97,135.93,10.29981416]
[1767990346384,0.71970181,135.97,135.94,13.44]
[1767990346985,0.71970181,135.97,135.93,2.91334423]
[1767990347162,0.71970181,135.96,135.93,13.44]
[1767990347862,0.71970181,135.95,135.9,7.38812357]
[1767990348080,0.71970181,135.94,135.9,20.82812357]
[1767990348261,0.71970181,135.94,135.9,23.7414678]
[1767990348662,0.71970181,135.94,135.91,2.91334423]
[1767990348882,0.71970181,135.94,135.9,7.38812357]
[1767990349183,0.71970181,135.94,135.91,13.44]
[1767990349981,0.65634786,135.96,135.92,0.02999999]
[1767990350189,0.65634786,135.96,135.93,2.91334423]
[1767990350364,0.65634786,135.96,135.92,2.94334422]
[1767990350679,0.65634786,135.96,135.92,16.38334422]
[1767990351286,0.65634786,135.96,135.92,23.7402795]
[1767990354284,0.65634786,135.97,135.93,2.94334422]
[1767990355068,0.65634786,135.97,135.94,2.91334423]
[1767990355493,0.65634786,135.97,135.93,2.94334422]
[1767990358172,0.65634786,135.97,135.93,0.02999999]
[1767990358374,0.65634786,135.97,135.94,7.35618655]
[1767990358891,0.65634786,135.97,135.93,10.2997961]
[1767990360687,0.65634786,135.97,135.93,10.26979611]
[1767990361082,0.65634786,135.96,135.91,18.42397218]
[1767990361394,0.65634786,135.94,135.9,2.91334423]
[1767990361622,0.65634786,135.94,135.9,16.35334423]
[1767990362698,0.65634786,135.94,135.9,2.91334423]
[1767990362912,0.65634786,135.94,135.9,16.35334423]
[1767990363281,0.65634786,135.94,135.9,7.3582437]
[1767990363486,0.72251038,135.93,135.9,13.44]
[1767990363716,0.72251038,135.93,135.9,16.35334423]
[1767990364220,0.72251038,135.93,135.9,13.44]
[1767990364801,0.72251038,135.93,135.9,20.79828613]
[1767990365413,0.72251038,135.94,135.91,2.91334423]
[1767990365792,0.72251038,135.94,135.9,23.74163035]
[1767990365994,0.72251038,135.94,135.9,23.71163036]
[1767990366891,0.72251038,135.93,135.9,20.79828613]
[1767990368803,0.72251038,135.93,135.9,23.74163035]
[1767990371327,0.72251038,135.98,135.91,16.35334423]
[1767990371512,0.72251038,135.98,135.93,2.91334423]
[1767990371714,0.72251038,135.98,135.94,2.91334423]
[1767990372122,0.72251038,135.98,135.94,16.38334422]
[1767990373031,0.72251038,135.98,135.95,10.29898967]
[1767990373224,0.72251038,135.98,135.95,28.68810331]
[1767990373539,104.5,136.0,135.98,2.91334423]
[1767990373721,13.44,136.01,135.98,2.88061065]
[1767990374414,0.14216157,136.0,135.98,2.88061065]
[1767990374734,0.28432314,136.0,135.98,2.88061065]
[1767990375334,0.72251038,135.99,135.98,2.88061065]
[1767990375508,0.28432314,136.0,135.98,2.88061065]
[1767990376410,0.28432314,136.0,135.97,2.91334423]
[1767990377135,104.5,136.03,135.99,2.91334423]
[1767990377432,107.41334423,136.03,135.99,2.91334423]
[1767990377633,0.86467195,136.02,135.98,3.5846157]
[1767990378131,0.72251038,136.01,135.98,3.5846157]
[1767990378440,0.72251038,136.01,135.98,10.93851063]
[1767990379138,0.72251038,136.0,135.97,8.02559256]
[1767990379431,0.72251038,135.99,135.96,8.02616094]
[1767990379809,0.72251038,135.99,135.96,7.35488947]
[1767990381437,0.72251038,135.98,135.95,7.35546809]
[1767990381612,2.91334423,135.98,135.95,5.93048884]
[1767990381935,7.35350546,135.99,135.93,7.35626419]
[1767990382236,2.91334423,135.96,135.93,7.35626419]
[1767990382416,2.91334423,135.97,135.93,7.35626419]
[1767990382737,4.55042912,135.97,135.93,7.35626419]
[1767990383851,4.55042912,135.97,135.93,8.02753566]
[1767990385634,7.63839525,135.98,135.93,8.02753566]
[1767990385945,4.55042912,135.98,135.94,0.67127147]
[1767990386642,7.63804001,135.99,135.93,8.02772061]
[1767990386643,4.55042912,135.97,135.93,8.02772061]
[1767990386813,4.55042912,135.97,135.94,0.67127147]
[1767990387226,4.55042912,135.96,135.92,0.67127147]
[1767990387424,26.02174469,135.99,135.93,0.67127147]
[1767990387829,4.55042912,135.96,135.93,0.67127147]
[1767990390531,4.55042912,135.95,135.92,0.67127147]
[1767990392317,4.55042912,135.95,135.91,20.7972869]
[1767990392520,4.55042912,135.94,135.91,13.44]
[1767990392834,4.55042912,135.94,135.91,0.67127147]
[1767990394828,4.55042912,135.95,135.91,0.67127147]
[1767990398233,4.55042912,135.95,135.91,8.02904905]
[1767990399846,4.83475226,135.94,135.89,0.72377784]
[1767990400025,4.55042912,135.93,135.89,0.72377784]
[1767990400225,4.83475226,135.94,135.89,0.72377784]
[1767990401655,4.83475226,135.94,135.88,36.38830733]
[1767990401656,4.55042912,135.92,135.88,0.72377784]
[1767990402828,0.28432314,135.92,135.89,7.35878798]
[1767990404842,4.963761,135.98,135.91,0.72377784]
[1767990405044,4.55042912,135.96,135.91,5.27420696]
[1767990405342,4.55042912,135.96,135.91,0.72377784]
[1767990406050,4.55042912,135.96,135.91,8.08126639]
[1767990406223,4.55042912,135.96,135.92,0.72377784]
[1767990406428,4.69259069,135.95,135.91,8.08126639]
[1767990406749,0.14216157,135.95,135.91,8.08126639]
[1767990406932,4.69259069,135.95,135.91,8.08126639]
[1767990410434,4.55042912,135.94,135.91,8.08126639]
[1767990410635,4.55042912,135.94,135.91,0.72377784]
[1767990415156,4.55042912,135.93,135.9,0.69985792]
[1767990415349,4.55042912,135.92,135.88,0.69985792]
[1767990415552,4.52042913,135.92,135.88,0.69985792]
[1767990416357,4.83475226,135.93,135.88,0.69985792]
[1767990416858,4.83475226,135.93,135.89,8.05873743]
[1767990417550,0.28432314,135.93,135.9,0.69985792]
[1767990417942,11.90616395,135.95,135.9,0.69985792]
[1767990418142,0.28432314,135.94,135.9,0.69985792]
[1767990418642,4.55042912,135.95,135.91,8.05766823]
[1767990420258,4.83475226,135.95,135.91,8.05766823]
[1767990420959,0.28432314,135.96,135.93,0.69985792]
[1767990422559,4.83475226,135.96,135.93,0.69985792]
[1767990423358,4.55042912,135.95,135.92,0.69218711]
[1767990424465,4.55042912,135.95,135.91,8.04999742]
[1767990424755,11.90624699,135.95,135.91,0.69218711]
[1767990428055,11.90624699,135.95,135.9,7.35822372]
[1767990428257,11.90624699,135.95,135.9,8.05041083]
[1767990432569,7.63959883,135.96,135.91,12.6003818]
[1767990432896,4.55042912,135.94,135.9,8.05029942]
[1767990433171,4.55042912,135.93,135.89,0.69218711]
[1767990433367,4.55042912,135.92,135.89,0.69218711]
[1767990433878,4.83475226,135.95,135.91,0.69218711]
[1767990434051,4.83475226,135.95,135.92,0.69218711]
[1767990434375,0.28432314,135.95,135.92,0.69218711]
[1767990435773,7.64003556,135.95,135.92,0.69218711]
[1767990438977,12.19046468,135.95,135.92,0.69218711]
[1767990439165,7.64003556,135.95,135.92,0.69218711]
[1767990447493,7.35526397,135.96,135.92,0.69218711]
[1767990448385,10.26827034,135.96,135.92,0.69218711]
[1767990448885,7.35526397,135.96,135.92,0.69218711]
[1767990449087,10.26827034,135.96,135.92,0.69218711]
[1767990449381,3.19732951,135.95,135.91,0.69218711]
[1767990449588,7.35627421,135.94,135.9,0.69218711]
[1767990449758,10.26928058,135.94,135.9,0.69218711]
[1767990449963,2.91300637,135.93,135.9,0.69218711]
[1767990452194,2.91300637,135.94,135.9,0.69218711]
[1767990454368,10.26951503,135.94,135.9,0.69218711]
[1767990461393,7.35650866,135.94,135.9,0.69218711]
[1767990462805,2.91300637,135.94,135.9,0.69218711]
[1767990463367,18.38954297,135.95,135.9,0.69218711]
[1767990463595,3.19732951,135.94,135.9,0.69218711]
[1767990463770,10.55395941,135.94,135.9,0.69218711]
[1767990468805,7.64095304,135.94,135.91,0.68457107]
[1767990468988,10.55395941,135.94,135.91,0.68457107]
[1767990469800,7.64095304,135.94,135.91,0.68457107]
[1767990470003,10.55395941,135.94,135.9,0.67694155]
[1767990470872,10.27019854,135.93,135.9,0.67694155]
[1767990471078,3.19732951,135.92,135.88,0.67694155]
[1767990472200,10.55499684,135.92,135.88,0.67694155]
[1767990472599,7.64199047,135.92,135.89,0.67694155]
[1767990472897,10.55499684,135.92,135.89,0.67694155]
[1767990474214,7.64199047,135.92,135.89,0.67694155]
[1767990474500,10.55499684,135.92,135.89,0.67694155]
[1767990475908,2.91300637,135.91,135.88,0.67694155]
[1767990477081,10.27092557,135.91,135.88,0.67694155]
[1767990477384,7.3579192,135.91,135.88,0.67694155]
[1767990481418,10.27092557,135.91,135.88,0.67694155]
[1767990482889,2.91300637,135.9,135.86,0.66421802]
[1767990483093,2.91300637,135.89,135.86,0.66421802]
[1767990485012,10.27198086,135.89,135.86,0.66421802]
[1767990485612,7.35897449,135.89,135.86,0.66421802]
[1767990488420,10.27198086,135.89,135.86,0.66421802]
[1767990491223,2.91300637,135.87,135.84,0.66421802]
[1767990492532,39.19620754,135.89,135.84,0.66421802]
[1767990492533,2.91300637,135.86,135.84,0.66421802]
[1767990496307,0.28432314,135.88,135.84,0.66421802]
[1767990496308,7.64382537,135.88,135.84,0.66421802]
[1767990496634,23.99683174,135.88,135.84,0.66421802]
[1767990496928,2.91300637,135.87,135.84,0.66421802]
[1767990497727,23.85467017,135.88,135.84,0.66421802]
[1767990498025,23.7125086,135.88,135.84,0.66421802]
[1767990498227,10.2725086,135.88,135.84,0.66421802]
[1767990498827,2.91300637,135.88,135.84,0.66421802]
[1767990499032,10.27189959,135.89,135.84,0.66421802]
[1767990499232,2.91300637,135.88,135.84,0.66421802]
[1767990499835,10.2727941,135.88,135.84,0.66421802]
[1767990503510,2.91300637,135.87,135.84,0.66421802]
[1767990503913,2.91300637,135.86,135.84,0.66421802]
[1767990504412,2.91300637,135.85,135.84,0.66421802]
[1767990504611,4.55810599,135.85,135.81,20.80303651]
[1767990504832,0.28432314,135.87,135.81,20.80303651]
[1767990505032,4.55810599,135.85,135.82,0.66421802]
[1767990505840,11.91862417,135.86,135.82,0.66421802]
[1767990506024,4.55810599,135.85,135.82,0.66421802]
[1767990507143,11.91918599,135.85,135.82,0.66421802]
[1767990507314,7.36108,135.85,135.82,0.66421802]
[1767990507636,11.91918599,135.85,135.82,0.66421802]
[1767990509331,11.91862417,135.86,135.82,0.66421802]
[1767990510842,4.55810599,135.85,135.82,0.66421802]
[1767990511140,4.55810599,135.84,135.8,0.66421802]
[1767990511347,11.91992487,135.84,135.8,0.66421802]
[1767990512143,4.55810599,135.82,135.8,0.66421802]
[1767990512648,4.528106,135.82,135.8,0.66421802]
[1767990513137,4.55810599,135.81,135.79,0.2]
[1767990513529,11.92151272,135.81,135.79,0.2]
[1767990515037,4.55810599,135.8,135.79,0.2]
[1767990515722,4.55810599,135.8,135.78,0.70363336]
[1767990516241,4.55810599,135.79,135.77,0.90363336]
[1767990516763,4.55810599,135.78,135.77,0.90363336]
[1767990516945,4.55810599,135.78,135.76,0.90363336]
[1767990517119,0.11545514,135.76,135.74,0.2]
[1767990517325,4.55810599,135.75,135.74,0.2]
[1767990517530,4.55810599,135.76,135.74,0.2]
[1767990517730,4.55810599,135.76,135.74,0.90363336]
[1767990518446,4.55810599,135.75,135.73,0.2]
[1767990518632,4.55810599,135.74,135.73,0.2]
[1767990519230,4.55810599,135.75,135.73,0.2]
[1767990519746,12.58318176,135.75,135.73,0.2]
[1767990520431,4.55810599,135.74,135.73,0.2]
[1767990523553,11.92461593,135.75,135.73,0.2]
[1767990524554,4.55810599,135.74,135.73,0.2]
[1767990524746,34.55810599,135.74,135.73,0.2]
[1767990525151,34.55810599,135.74,135.54,0.2]
[1767990525152,0.65302613,135.7,135.64,3.8398239]
[1767990525451,0.9319198,135.63,135.6,0.2]
[1767990525653,4.55810599,135.62,135.6,0.2]
[1767990525841,4.84242913,135.61,135.6,1e-08]
[1767990526040,0.28432314,135.6,135.58,0.2]
[1767990526341,4.84242913,135.59,135.58,0.2]
[1767990526640,0.28432314,135.59,135.58,0.2]
[1767990526845,4.84242913,135.59,135.58,0.2]
[1767990527149,4.55810599,135.61,135.59,0.70363336]
[1767990527349,17.95192059,135.68,135.61,0.70363336]
[1767990527350,0.28432314,135.65,135.61,0.70363336]
[1767990527542,7.37145759,135.66,135.61,5.26173935]
[1767990527846,0.28432314,135.65,135.61,5.26173935]
[1767990528023,0.28432314,135.65,135.62,0.70363336]
[1767990529556,4.55810599,135.66,135.63,0.69295252]
[1767990529744,5.56516419,135.66,135.63,0.69295252]
[1767990529949,5.56516419,135.66,135.61,5.25105851]
[1767990530154,4.55810599,135.65,135.61,0.69295252]
[1767990531739,5.56516419,135.66,135.62,0.69295252]
[1767990532239,12.9366172,135.66,135.62,0.69295252]
[1767990532439,4.55810599,135.65,135.62,0.69295252]
[1767990533758,0.72273506,135.64,135.61,7.3740741]
[1767990534259,0.72273506,135.64,135.61,0.69295252]
[1767990534439,5.28084105,135.65,135.61,0.69295252]
[1767990535944,1.0070582,135.66,135.62,0.69295252]
[1767990536142,0.72273506,135.66,135.63,0.69295252]
[1767990536657,14.18273506,135.68,135.64,0.69295252]
[1767990536954,14.18273506,135.68,135.61,25.80882171]
[1767990536955,5.28084105,135.7,135.65,5.25105851]
[1767990537158,5.28084105,135.7,135.66,0.69295252]
[1767990537368,12.6500706,135.7,135.66,0.69295252]
[1767990537559,8.09196461,135.7,135.66,0.69295252]
[1767990537863,1.0070582,135.69,135.66,0.69295252]
[1767990538161,0.28432314,135.69,135.66,0.69295252]
[1767990539760,4.84242913,135.69,135.66,0.69295252]
[1767990539961,0.72273506,135.68,135.64,12.62332738]
[1767990540960,0.72273506,135.68,135.65,7.37190398]
[1767990541276,0.72273506,135.68,135.65,12.62296249]
[1767990542669,0.72273506,135.68,135.66,4.55810599]
[1767990542964,0.28432314,135.69,135.66,0.72053383]
[1767990543168,0.98671212,135.69,135.66,0.72053383]
[1767990545363,0.28432314,135.69,135.66,0.72053383]
[1767990546141,0.28432314,135.7,135.67,0.72053383]
[1767990547964,0.98671212,135.7,135.67,0.72053383]
[1767990548167,0.28432314,135.7,135.67,0.72053383]
[1767990551667,0.70238898,135.69,135.66,12.64993008]
[1767990553278,0.28432314,135.7,135.67,0.72053383]
[1767990554962,8.07159362,135.7,135.66,0.72053383]
[1767990555162,5.26049497,135.7,135.66,8.09185205]
[1767990555353,5.26049497,135.7,135.67,0.72053383]
[1767990555558,0.98671212,135.7,135.67,0.72053383]
[1767990556852,8.35591114,135.7,135.67,0.72053383]
[1767990559079,0.98671212,135.7,135.67,0.72053383]
[1767990559375,0.28432314,135.7,135.68,0.72053383]
[1767990559582,105.20238898,135.72,135.69,0.72053383]
[1767990562579,112.57050534,135.72,135.69,0.72053383]
[1767990564485,105.20238898,135.72,135.69,0.72053383]
[1767990567382,112.57056136,135.72,135.69,0.72053383]
[1767990567886,0.70238898,135.7,135.67,0.72053383]
[1767990568760,3.62506338,135.7,135.66,8.09172299]
[1767990568965,0.70238898,135.7,135.66,8.09172299]
[1767990569387,0.70238898,135.7,135.67,0.72053383]
[1767990570676,107.4226744,135.72,135.68,0.72053383]
[1767990570677,104.5,135.72,135.68,0.72053383]
[1767990570884,104.5,135.72,135.69,0.72053383]
[1767990570885,0.28432314,135.71,135.69,0.72053383]
[1767990573091,105.20238898,135.72,135.69,0.72053383]
[1767990576200,105.20238898,135.72,135.69,8.09025958]
[1767990576820,0.70348666,135.74,135.7,0.67701786]
[1767990576999,3.62616106,135.74,135.7,0.67701786]
[1767990577299,0.9878098,135.74,135.7,8.04604557]
[1767990577795,3.9104842,135.74,135.7,8.04604557]
[1767990578102,0.70348666,135.72,135.68,10.96943276]
[1767990578279,0.70348666,135.72,135.69,0.67701786]
[1767990578684,0.70348666,135.72,135.69,8.04671448]
[1767990578994,10.57419966,135.74,135.69,8.04671448]
[1767990579200,0.70348666,135.73,135.69,8.04671448]
[1767990579697,0.70348666,135.73,135.7,0.67701786]
[1767990581197,8.06998421,135.75,135.71,0.67701786]
[1767990581505,0.28432314,135.74,135.71,3.59969226]
[1767990582192,0.28432314,135.74,135.71,0.67701786]
[1767990582493,0.28432314,135.74,135.71,3.59969226]
[1767990582888,0.28432314,135.74,135.71,0.67701786]
[1767990583395,0.9878098,135.74,135.71,0.67701786]
[1767990583907,11.27756976,135.74,135.71,0.67701786]
[1767990584202,0.70348666,135.7,135.6,98.77228548]
[1767990584383,0.70348666,135.67,135.64,0.67701786]
[1767990584705,0.70348666,135.67,135.64,8.04914627]
[1767990584903,0.70348666,135.67,135.63,2.9226744]
[1767990584904,0.70348666,135.65,135.61,0.67701786]
[1767990585107,0.70348666,135.65,135.62,7.37337482]
[1767990586504,0.70348666,135.65,135.61,8.05091408]
[1767990586710,3.62616106,135.66,135.62,0.67701786]
[1767990589705,10.99762918,135.66,135.62,0.67701786]
[1767990589898,10.99762918,135.66,135.6,10.29708641]
[1767990589899,3.59942314,135.65,135.6,10.29708641]
[1767990590106,3.59942314,135.65,135.61,0.65342488]
[1767990590293,0.67674874,135.64,135.61,0.65342488]
[1767990591823,3.59942314,135.64,135.61,0.65342488]
[1767990592511,0.67674874,135.63,135.6,8.02783689]
[1767990592696,0.67674874,135.64,135.61,8.02739442]
[1767990595792,0.67674874,135.64,135.61,0.65342488]
[1767990597516,0.67674874,135.64,135.61,8.02750127]
[1767990600297,3.59942314,135.66,135.62,0.65342488]
[1767990600614,3.59942314,135.66,135.61,10.29675079]
[1767990600615,3.59942314,135.64,135.61,0.65342488]
[1767990600810,0.67674874,135.66,135.62,0.65342488]
[1767990600994,3.59942314,135.66,135.62,0.65342488]
[1767990601198,3.59942314,135.65,135.62,0.65342488]
[1767990601416,3.59942314,135.65,135.61,0.65342488]
[1767990601610,105.17674874,135.68,135.62,0.65342488]
[1767990601806,3.59942314,135.67,135.63,0.65342488]
[1767990602012,3.59942314,135.65,135.62,0.65342488]
[1767990602810,3.59942314,135.65,135.61,0.69364945]
[1767990603003,25.79800142,135.67,135.59,0.69364945]
[1767990603004,3.59157353,135.62,135.59,0.69364945]
[1767990604196,3.59157353,135.61,135.58,0.2]
[1767990604516,3.87589667,135.61,135.58,0.2]
[1767990605016,3.59157353,135.64,135.6,0.69364945]
[1767990605319,10.96405194,135.64,135.6,0.69364945]
[1767990606319,0.66889913,135.64,135.61,0.69364945]
[1767990606521,8.04142118,135.64,135.61,0.69364945]
[1767990606709,8.04142118,135.64,135.6,0.69364945]
[1767990607723,2.9226744,135.62,135.59,0.69364945]
[1767990608020,3.59157353,135.62,135.58,8.26907261]
[1767990608825,10.96425862,135.64,135.59,0.69364945]
[1767990609324,8.04158422,135.64,135.59,0.69364945]
[1767990609502,10.96425862,135.64,135.59,0.69364945]
[1767990609701,8.04158422,135.64,135.59,0.69364945]
[1767990609919,0.66889913,135.63,135.6,0.69364945]
[1767990610116,0.66889913,135.62,135.59,0.69364945]
[1767990610321,3.59157353,135.62,135.58,0.89364945]
[1767990610830,25.80382634,135.64,135.58,0.2]
[1767990610831,0.66889913,135.6,135.58,0.2]
[1767990611003,3.59157353,135.6,135.58,0.2]
[1767990611426,0.66889913,135.6,135.58,0.2]
[1767990612611,8.04353323,135.6,135.58,0.2]
[1767990612817,10.96571403,135.61,135.58,0.2]
[1767990613729,8.04303963,135.61,135.58,0.2]
[1767990613912,10.96571403,135.61,135.58,0.2]
[1767990614117,8.04303963,135.61,135.58,0.2]
[1767990614315,3.59157353,135.6,135.58,0.2]
[1767990614918,0.95322227,135.6,135.58,0.2]
[1767990615117,3.59157353,135.62,135.58,0.89364945]
[1767990615322,8.04266809,135.62,135.58,0.89364945]
[1767990616012,10.96534249,135.62,135.58,0.89364945]
[1767990616218,0.66889913,135.61,135.58,0.89364945]
[1767990616424,8.04299458,135.61,135.58,0.89364945]
[1767990616910,10.96566898,135.61,135.58,0.89364945]
[1767990617637,0.66889913,135.6,135.58,0.2]
[1767990617805,0.95322227,135.58,135.55,0.69364945]
[1767990618125,3.59157353,135.58,135.55,0.69364945]
[1767990618331,10.9674688,135.58,135.55,0.69364945]
[1767990619538,3.59157353,135.58,135.55,0.69364945]
[1767990619830,10.96737843,135.58,135.55,0.69364945]
[1767990621532,2.9226744,135.57,135.55,0.69364945]
[1767990621842,3.59157353,135.57,135.54,0.2]
[1767990622310,3.59157353,135.57,135.54,0.89364945]
[1767990622521,2.9226744,135.57,135.54,0.89364945]
[1767990623628,8.04470403,135.58,135.55,0.69364945]
[1767990623836,2.9226744,135.57,135.55,0.69364945]
[1767990625613,10.96737843,135.58,135.55,0.69364945]
[1767990627221,2.9226744,135.57,135.55,0.69364945]
[1767990627810,2.9226744,135.57,135.54,0.2]
[1767990628010,2.9226744,135.57,135.55,0.69364945]
[1767990628637,104.5,135.6,135.57,0.69364945]
[1767990628938,0.66889913,135.61,135.57,0.69364945]
[1767990629114,0.66889913,135.63,135.57,0.69364945]
[1767990629314,5.24563586,135.65,135.6,0.69364945]
[1767990629527,141.35118023,135.69,135.62,0.69364945]
[1767990629528,5.24563586,135.67,135.62,0.69364945]
[1767990629739,5.24563586,135.68,135.64,0.69364945]
[1767990630737,12.61593045,135.68,135.64,0.69364945]
[1767990631341,0.66889913,135.71,135.66,0.69364945]
[1767990631527,0.66889913,135.7,135.66,0.69364945]
[1767990631727,5.24563586,135.69,135.66,0.69364945]
[1767990632947,0.66889913,135.69,135.66,0.69364945]
[1767990633540,12.61544018,135.69,135.65,0.68917371]
[1767990634820,12.61544018,135.69,135.64,0.68917371]
[1767990634821,0.72398662,135.68,135.64,0.68917371]
[1767990635027,5.30072335,135.67,135.64,0.68917371]
[1767990636029,4.57673673,135.67,135.64,0.68917371]
[1767990636428,5.58504649,135.68,135.64,0.68917371]
[1767990637250,12.95555549,135.68,135.64,0.68917371]
[1767990637453,0.72398662,135.7,135.65,0.68917371]
[1767990637642,4.57673673,135.71,135.67,0.68917371]
[1767990637842,5.30072335,135.72,135.64,7.37213855]
[1767990638146,12.66901707,135.72,135.67,4.57673673]
[1767990638451,8.09228034,135.72,135.67,4.57673673]
[1767990638635,12.66901707,135.72,135.67,4.57673673]
[1767990638834,13.46,135.73,135.69,4.57673673]
[1767990639033,11.94409323,135.74,135.69,4.57673673]
[1767990639237,12.66807985,135.74,135.68,7.37011291]
[1767990639434,12.66807985,135.74,135.69,4.57673673]
[1767990639855,12.66807985,135.74,135.7,0.68917371]
[1767990640346,0.72398662,135.73,135.68,0.68917371]
[1767990640651,5.30072335,135.73,135.69,0.68917371]
[1767990641452,12.66846358,135.73,135.69,0.68917371]
[1767990642261,5.30072335,135.71,135.67,0.68917371]
[1767990643354,14.46830976,135.74,135.69,0.68917371]
[1767990643541,5.58504649,135.73,135.69,0.68917371]
[1767990643857,0.72398662,135.72,135.69,0.68917371]
[1767990644545,0.72398662,135.72,135.68,0.68917371]
[1767990645461,12.66896164,135.72,135.68,0.68917371]
[1767990645636,8.09222491,135.72,135.68,0.68917371]
[1767990646550,0.72398662,135.72,135.68,8.05945422]
[1767990646853,8.09168426,135.73,135.7,0.68917371]
[1767990647759,8.09168426,135.73,135.69,0.68917371]
[1767990647967,12.66842099,135.73,135.69,0.68917371]
[1767990649161,0.72398662,135.73,135.69,0.68917371]
[1767990649544,26.0729582,135.74,135.69,0.68917371]
[1767990649745,21.49622147,135.74,135.69,0.68917371]
[1767990649942,26.0729582,135.74,135.69,0.68917371]
[1767990651059,12.6129582,135.74,135.69,0.68917371]
[1767990651260,12.6129582,135.74,135.7,0.67629341]
[1767990651752,0.66897606,135.73,135.7,0.67629341]
[1767990652261,0.66897606,135.73,135.69,0.67629341]
[1767990652468,0.69573041,135.7,135.67,0.67629341]
[1767990652650,0.69573041,135.7,135.66,0.67629341]
[1767990652651,5.27246714,135.7,135.66,0.67629341]
[1767990652962,4.57673673,135.67,135.64,0.67629341]
[1767990653265,5.24571279,135.68,135.64,0.67629341]
[1767990655170,12.61607143,135.68,135.64,0.67629341]
[1767990656469,7.37035864,135.68,135.64,0.67629341]
[1767990656656,11.94709537,135.68,135.64,0.67629341]
[1767990657248,7.37035864,135.68,135.64,0.67629341]
[1767990657557,11.94709537,135.68,135.64,0.67629341]
[1767990659268,12.61607143,135.68,135.64,0.67629341]
[1767990659468,0.66897606,135.67,135.63,0.67629341]
[1767990659656,5.24571279,135.67,135.63,0.67629341]
[1767990660868,8.03885878,135.69,135.66,0.67629341]
[1767990661048,0.69573041,135.7,135.66,5.16521637]
[1767990661446,8.06498365,135.7,135.66,5.16521637]
[1767990662369,0.66897606,135.68,135.64,11.94889657]
[1767990662875,0.66897606,135.68,135.64,4.57673673]
[1767990663173,0.66897606,135.68,135.64,5.23813535]
[1767990663876,0.66897606,135.68,135.65,0.66139862]
[1767990664076,8.0393728,135.68,135.65,0.66139862]
[1767990664257,0.70604871,135.67,135.64,4.57673673]
[1767990664573,0.70604871,135.67,135.64,5.23813535]
[1767990665477,8.07644545,135.68,135.64,5.23813535]
[1767990665868,0.70604871,135.66,135.62,8.0347375]
[1767990666174,4.57673673,135.67,135.63,5.23813535]
[1767990666175,0.70604871,135.67,135.63,5.23813535]
[1767990666369,0.99037185,135.69,135.64,0.66139862]
[1767990666571,8.1023354,135.7,135.66,0.66139862]
[1767990666755,0.70604871,135.69,135.65,5.23813535]
[1767990667078,0.70604871,135.69,135.65,4.57673673]
[1767990669176,0.70604871,135.69,135.65,11.94860847]
[1767990669476,0.73280306,135.7,135.68,4.57673673]
[1767990669776,0.73280306,135.7,135.65,21.49327036]
[1767990669777,0.02701579,135.68,135.65,21.49327036]
[1767990669979,0.02701579,135.68,135.66,4.57673673]
[1767990670372,0.02701579,135.68,135.66,5.23813535]
[1767990671063,0.02701579,135.68,135.65,0.66139862]
[1767990671478,0.02701579,135.68,135.66,0.66139862]
[1767990680003,7.65453201,135.69,135.66,0.66139862]
[1767990680167,104.5,135.71,135.7,0.66139862]
[1767990680487,0.099,135.74,135.7,5.17813535]
[1767990680488,7.36778784,135.73,135.7,5.17813535]
[1767990680671,8.07383655,135.73,135.7,0.60139862]
[1767990680984,8.07383655,135.73,135.7,0.54139862]
[1767990682775,0.70070855,135.71,135.68,0.66139862]
[1767990683090,4.86105987,135.72,135.68,5.23813535]
[1767990683091,8.35872642,135.72,135.68,5.23813535]
[1767990683472,8.35872642,135.72,135.68,0.66139862]
[1767990683691,8.35872642,135.72,135.68,5.23813535]
[1767990687689,8.35872642,135.72,135.65,31.88931437]
[1767990687690,0.70604871,135.74,135.7,5.23813535]
[1767990687895,0.70604871,135.74,135.71,0.66139862]
[1767990687896,8.35766852,135.74,135.71,0.66139862]
[1767990688190,0.17203243,135.73,135.69,5.23813535]
[1767990688366,12.93440525,135.74,135.7,0.66139862]
[1767990689466,8.35766852,135.74,135.7,5.23813535]
[1767990689991,0.17203243,135.76,135.72,0.66139862]
[1767990690193,4.74876916,135.76,135.72,0.60139862]
[1767990690496,0.14216157,135.75,135.72,3.52264166]
[1767990690666,11.7438717,135.78,135.74,2.92124304]
[1767990690667,0.1,135.78,135.74,2.92124304]
[1767990690861,0.33415103,135.8,135.71,25.78993583]